[Event "German Rapid Championship 2022"]
[Site "Goettingen"]
[Date "2022.09.25"]
[Round "6.7"]
[White "Hampel, Felix"]
[Black "Langrock, Hannes"]
[Result "0-1"]
[ECO "E04"]
[WhiteElo "2326"]
[BlackElo "2358"]
[Annotator "TA"]
[PlyCount "134"]
[EventDate "2022.09.24"]
[EventType "swiss"]
[EventCountry "GER"]
[SourceTitle "playchess.com"]
[Source "ChessBase"]
[SourceQuality "1"]
[TimeControl "900+10"]

{[%evp 23,134,16,16,21,19,15,12,15,17,23,22,0,0,0,2,0,0,0,0,-73,-77,-129,-136,-241,-200,-235,-214,-260,-257,-246,-197,-278,85,105,85,-23,-21,-266,-265,-261,-261,-261,-258,-268,-268,-268,-261,-261,-254,-320,-279,-308,-279,-275,-275,-283,-283,-441,-441,-441,-441,-441,-357,-434,-434,-469,-449,-429,0,-420,-386,-427,-296,-402,-274,-317,-265,-412,-244,-12795,-6609,-29952,-29955,-29964,-29966,-29969,-29968,-29968,-29967,-29969,-29971,-29979,-29972,-29976,-29968,-29967,-29967,-29958,-7571,-29982,-29983,-29983,-29984,-29984,-29985,-29985,-29985,-29985,-29985,-29985,-29986,-29986,-29987]} 1. d4 {[%emt 0:00:02]} Nf6 {[%emt 0:00:05]} 2. Nf3 {[%emt 0:00:04]} d5 {[%emt 0:00:04]} 3. c4 {[%emt 0:00:02]} e6 {[%emt 0:00:03]} 4. g3 {[%emt 0:00:01]} dxc4 {[%emt 0:00:11]} 5. Bg2 {[%emt 0:00:02]} c5 {[%emt 0:00:03]} 6. O-O {[%emt 0:00:09]} Nc6 {[%emt 0:00:02]} 7. dxc5 {[%emt 0:00:05]} Qxd1 {[%emt 0:00:11]} 8. Rxd1 {[%emt 0:00:01]} Bxc5 {[%emt 0:00:05]} 9. Nbd2 {[%emt 0:00:04]} c3 {[%emt 0:00:06]} 10. bxc3 {[%emt 0:00:01]} O-O {[%emt 0:00:17]} 11. Nb3 {[%emt 0:00:13]} Be7 {[%emt 0:00:15]} 12. c4 {[%emt 0:00:15]} Bd7 {[%emt 0:00:26]} 13. Bb2 {[%emt 0:00:40] E04: Open Catalan: 5 Nf3.} Rfc8 {[%emt 0:00:42]} 14. Bxf6 {[%emt 0:05:08]} Bxf6 {[%emt 0:00:07]} 15. Rxd7 {[%emt 0:00:01] The position is equal.} Bxa1 {[%emt 0:00:04]} 16. Nxa1 {[%emt 0:00:01] And now Nb3 would win.} Rd8 {[%emt 0:00:13]} 17. Rd2 {[%emt 0:00:03]} Ne5 {[%emt 0:01:24]} 18. Nb3 {[%emt 0:01:24]} ({But not} 18. Nxe5 $2 Rxd2 19. Nb3 Rxe2 $19) 18... Nxc4 {[%emt 0:01:29]} 19. Rc2 {[%emt 0:00:01]} Rd1+ {[%emt 0:00:51]} 20. Bf1 {[%emt 0:00:01]} Rc8 {[%emt 0:01:17][%cal Od1f1] [#]} 21. Nfd2 $146 {[%emt 0:01:26]} (21. Nbd2 $11 Nd6 22. Rb2) ({Predecessor:} 21. Nbd2 b5 22. a4 Nb6 23. Rxc8+ Nxc8 24. axb5 Nd6 25. e3 Nxb5 26. Kg2 Nc3 27. Nc4 {½-½ (56) Nakamura,H (2736)-Praggnanandhaa,R (2608) chess24.com INT 2021}) 21... b5 $17 {[%emt 0:03:33]} 22. e3 {[%emt 0:00:29] [#]} (22. a3 $142) 22... a5 $1 {[%emt 0:01:03][%cal Ba7a5,Ba5a4][%mdl 32] Black has more active pieces.} 23. Nxc4 {[%emt 0:01:27]} (23. Nf3 $17 {only move.}) 23... Rxc4 $19 {[%emt 0:00:38]} 24. Rb2 {[%emt 0:02:09]} a4 {[%emt 0:03:03][%mdl 1024] Black has strong compensation.} 25. Nd2 {[%emt 0:00:03]} Rcc1 {[%emt 0:00:34]} 26. Kg2 {[%emt 0:00:01]} Kf8 {[%emt 0:01:00] White must now prevent ...a3.} 27. a3 {[%emt 0:01:40]} ({Wrong is} 27. Bxb5 $2 a3 28. Rb3 Rxd2 29. Rxa3 Rcc2 $19) (27. Nf3 $142 Rxf1 28. Rxb5) 27... Ra1 $2 {[%emt 0:01:10]} (27... b4 $1 $19 {[%cal Rb4a3]} 28. axb4 a3) 28. Bxb5 $16 {[%emt 0:00:16]} Rxa3 {[%emt 0:00:03] [#]} 29. Nc4 {[%emt 0:02:11]} (29. Be2 $1 $16 {[%cal Re2d1]} Rc1 30. Rb8+ Ke7 31. Ne4) 29... Raa1 $11 {[%emt 0:00:07] aiming for ...Rg1+.} 30. Rb4 $2 {[%emt 0:01:20] Black keeps a firm grip on the game.} (30. Bc6 $1 $11) 30... Rdb1 $19 {[%emt 0:00:21]} ({Worse is} 30... a3 31. Ra4 $15) 31. Rxa4 {[%emt 0:00:32]} Rxa4 {[%emt 0:00:06][%mdl 64] Remove Defender} 32. Bxa4 {[%emt 0:00:01]} Rb4 $1 {[%emt 0:00:03][%csl LRa4,LRc4]} 33. Bc6 {[%emt 0:00:24]} Rxc4 {[%emt 0:00:02][%mdl 4096] Endgame KR-KB} 34. Bb7 {[%emt 0:00:01]} Rb4 {[%emt 0:00:03]} 35. Bc6 {[%emt 0:00:01]} Rb2 {[%emt 0:00:02]} 36. g4 {[%emt 0:00:25]} Ke7 {[%emt 0:00:13]} 37. Kg3 {[%emt 0:00:06]} Rc2 {[%emt 0:00:50]} 38. Be4 {[%emt 0:00:01]} Rc8 {[%emt 0:00:16]} 39. h4 {[%emt 0:00:16]} h6 {[%emt 0:00:04]} 40. Bb7 {[%emt 0:00:26]} (40. f4 {was worth a try.}) 40... Rb8 {[%emt 0:00:02]} 41. Be4 {[%emt 0:00:01]} Kd6 {[%emt 0:00:03]} 42. Bd3 {[%emt 0:00:05]} Rb2 {[%emt 0:00:05]} 43. Be4 {[%emt 0:00:03]} Kc5 {[%emt 0:00:04]} 44. Bd3 {[%emt 0:00:14]} Kb4 {[%emt 0:00:04]} 45. Bh7 {[%emt 0:00:18]} Kc5 {[%emt 0:00:29]} 46. Bd3 $1 {[%emt 0:00:01]} Rb4 {[%emt 0:00:11]} 47. Kf3 {[%emt 0:00:05]} Ra4 {[%emt 0:00:10][%cal Oh6h5] Hoping for ...h5!} 48. Kg3 {[%emt 0:00:01]} Ra7 {[%emt 0:00:01] Threatens to win with ...Kb4.} 49. Be4 {[%emt 0:00:19]} g5 {[%emt 0:00:28] Strongly threatening ...Kc4.} 50. hxg5 {[%emt 0:00:04]} (50. Bh7 {might work better.}) 50... hxg5 {[%emt 0:00:01]} 51. Bd3 $2 {[%emt 0:00:30]} (51. Kf3) 51... Kb4 {[%emt 0:00:08] ( -> ...Kc3)} 52. Bh7 {[%emt 0:00:02]} Kc3 {[%emt 0:00:23]} 53. Kf3 {[%emt 0:00:18]} Kd2 {[%emt 0:00:09]} 54. Bg8 {[%emt 0:00:03]} Ke1 {[%emt 0:00:05]} 55. Kg3 {[%emt 0:00:17]} Ke2 {[%emt 0:00:05]} 56. Kg2 {[%emt 0:00:06]} e5 {[%emt 0:00:16]} 57. Kg3 {[%emt 0:00:02]} Rb7 {[%emt 0:00:07]} 58. Kg2 {[%emt 0:00:02]} f6 {[%emt 0:00:06]} 59. Kg3 {[%emt 0:00:29]} Rb2 {[%emt 0:00:08]} 60. Bf7 {[%emt 0:00:18]} Ke1 {[%emt 0:00:24]} 61. f4 {[%emt 0:00:07]} Ke2 {[%emt 0:00:15] Black mates.} 62. fxg5 {[%emt 0:00:07]} fxg5 {[%emt 0:00:01]} 63. e4 {[%emt 0:00:02]} Ke3 {[%emt 0:00:04]} 64. Bg6 {[%emt 0:00:01]} Rf2 {[%emt 0:00:10]} 65. Bh7 {[%emt 0:00:02]} Rf3+ {[%emt 0:00:03]} 66. Kg2 {[%emt 0:00:03]} Rf4 {[%emt 0:00:02]} 67. Kg3 {[%emt 0:00:01]} Rxe4 {[%emt 0:00:08] Weighted Error Value: White=0.56/Black=0.27 (precise)} 0-1

[Event "German Rapid Championship 2022"]
[Site "Goettingen"]
[Date "2022.09.25"]
[Round "6.8"]
[White "Karsay, Pascal"]
[Black "Spiess, Gunter"]
[Result "0-1"]
[ECO "A06"]
[WhiteElo "2269"]
[BlackElo "2384"]
[Annotator "TA"]
[PlyCount "68"]
[EventDate "2022.09.24"]
[EventType "swiss"]
[EventCountry "GER"]
[SourceTitle "playchess.com"]
[Source "ChessBase"]
[SourceQuality "1"]
[TimeControl "900+10"]

{[%evp 15,68,10,0,0,13,6,20,0,0,0,0,0,0,-18,-3,-14,-7,0,0,-32,-17,-26,-22,-135,-29,-39,-43,-140,-142,-162,-102,-158,-163,-164,-172,-260,-243,-262,-261,-400,-402,-387,-407,-410,-403,-416,-383,-369,-300,-2420,-1702,-29994,-29995,-29997,-792]} 1. Nf3 {[%emt 0:01:35]} d5 {[%emt 0:00:03]} 2. e3 {[%emt 0:00:01]} Nf6 {[%emt 0:00:34]} 3. c4 {[%emt 0:00:02]} e6 {[%emt 0:00:45]} 4. Nc3 {[%emt 0:00:02]} dxc4 {[%emt 0:00:43]} 5. Bxc4 {[%emt 0:00:02]} c5 {[%emt 0:00:07]} 6. O-O {[%emt 0:00:10]} a6 {[%emt 0:00:02]} 7. d4 {[%emt 0:00:02]} b5 {[%emt 0:00:01]} 8. Bb3 {[%emt 0:00:02]} Bb7 {[%emt 0:00:16]} 9. e4 {[%emt 0:00:02] D27: Queen's Gambit Accepted: Classical main line: 7 e4!? and 7 a4.} cxd4 {[%emt 0:00:04]} 10. Nxd4 {[%emt 0:00:07] With the idea e5.} Nc6 {[%emt 0:00:01]} 11. Be3 {[%emt 0:00:32] The position is equal.} Nxd4 {[%emt 0:01:56]} 12. Bxd4 {[%emt 0:00:10]} Be7 {[%emt 0:00:48]} ({Much less strong is} 12... Nxe4 13. Nxe4 Bxe4 14. Re1 $14) 13. f3 {[%emt 0:00:52]} Rc8 {[%emt 0:01:02] [#]} 14. Be3 $146 {[%emt 0:00:52]} ({Predecessor:} 14. Ne2 O-O 15. Be3 Bc5 16. Bxc5 Rxc5 17. Qxd8 Rxd8 18. Rac1 Rxc1 19. Rxc1 Kf8 20. Kf2 {1-0 (59) Levin,F (2482)-Scholz,C (2387) Germany 2011}) 14... Qc7 {[%emt 0:00:36]} 15. Rc1 {[%emt 0:00:18][%cal Oc3b5] Nxb5! is the strong threat.} Qb8 {[%emt 0:00:30]} 16. Qd2 $1 {[%emt 0:00:15]} Bd6 {[%emt 0:00:38]} 17. f4 {[%emt 0:02:35] Strongly threatening e5.} Bb4 {[%emt 0:04:14]} 18. e5 {[%emt 0:00:53]} Ne4 {[%emt 0:00:05]} 19. Qd4 {[%emt 0:02:01]} (19. Qe2 $11 {remains equal.}) 19... Nxc3 {[%emt 0:01:21]} (19... Bc5 $17 20. Qd3 Rd8) 20. bxc3 $11 {[%emt 0:01:00]} Bc5 {[%emt 0:00:24]} 21. Qxc5 {[%emt 0:01:27]} (21. Qd3 $15) 21... Rxc5 $17 {[%emt 0:00:00]} 22. Bxc5 {[%emt 0:00:02]} Qc7 {[%emt 0:00:01]} ({Black should play} 22... Qc8 $19 23. Bd6 Qc6) 23. Bd6 {[%emt 0:00:05]} (23. Ba3 $142) 23... Qc6 {[%emt 0:00:08][%csl Gb7][%cal Rc6g2]} 24. Rc2 {[%emt 0:00:45]} a5 $36 {[%emt 0:00:57][%cal Ba6a5,Ba5a4][%mdl 2080] Hoping for ...a4. Keeping White busy.} 25. f5 {[%emt 0:01:09]} (25. Rcf2 $142) 25... a4 $19 {[%emt 0:00:05]} 26. fxe6 {[%emt 0:00:19][%cal Of1f7]} f6 {[%emt 0:00:02][%cal Bf7f6,Bf6f5][%mdl 32] Really sharp!} ({But not} 26... axb3 27. exf7+ Kd7 28. axb3 $18) 27. Rcf2 {[%emt 0:02:47]} (27. Bxa4 {was called for.} bxa4 28. Rb2) 27... axb3 {[%emt 0:00:13]} 28. axb3 {[%emt 0:00:02]} Qd5 {[%emt 0:00:48] Inhibits Rd1.} 29. e7 {[%emt 0:00:03]} f5 {[%emt 0:00:23]} 30. c4 {[%emt 0:00:25]} Qe4 {[%emt 0:00:10]} 31. cxb5 {[%emt 0:00:38]} h5 {[%emt 0:00:02] Threatens to win with ...Rh6.} 32. b4 $2 {[%emt 0:00:45]} (32. Rd1) 32... Rh6 {[%emt 0:00:09] ( -> ...Rg6)} 33. Rd1 {[%emt 0:00:04]} Rg6 {[%emt 0:00:09]} 34. Rdd2 {[%emt 0:00:04] [#]} Qe1+ {Weighted Error Value: White=0.73/Black=0.14 (very precise)} (34... Rxg2+ $142 $3 {[%mdl 512]} 35. Kf1 {[#]} Rg1+ $3 {[%mdl 512]} 36. Kxg1 Qh1#) 0-1

[Event "German Rapid Championship 2022"]
[Site "Goettingen"]
[Date "2022.09.25"]
[Round "6.9"]
[White "Reichmann, Hendrik"]
[Black "Arndt, Magnus"]
[Result "0-1"]
[ECO "A45"]
[WhiteElo "2307"]
[BlackElo "2384"]
[Annotator "TA"]
[PlyCount "70"]
[EventDate "2022.09.24"]
[EventType "swiss"]
[EventCountry "GER"]
[SourceTitle "playchess.com"]
[Source "ChessBase"]
[SourceQuality "1"]
[TimeControl "900+10"]

{[%evp 9,70,2,-10,-7,-2,2,15,-8,27,8,0,11,8,-14,-24,-39,-25,-29,-32,-33,-47,-47,-32,-43,-41,-37,-31,-38,-31,-31,-17,-27,0,0,0,-45,-41,-43,-22,-20,-16,-20,-27,-162,-102,-151,-137,-171,-145,-122,-141,-775,-775,-761,-741,-696,-628,-1554,-883,-29970,-29971,-29986,-404]} 1. d4 {[%emt 0:00:05]} Nf6 {[%emt 0:00:02]} 2. Nc3 {[%emt 0:00:10]} d5 {[%emt 0:00:06]} 3. Bf4 {[%emt 0:00:04]} c5 {[%emt 0:00:07]} 4. e4 {[%emt 0:00:26]} cxd4 {[%emt 0:02:34]} 5. Qxd4 {[%emt 0:00:03]} Nc6 {[%emt 0:00:02]} 6. Bb5 {[%emt 0:00:03][%cal Re4d5] D00: 1 d4 d5: Unusual lines.} Bd7 {[%emt 0:00:12]} 7. Bxc6 {[%emt 0:00:01]} Bxc6 {[%emt 0:00:17]} 8. e5 {[%emt 0:00:02] The position is equal.} Ne4 {[%emt 0:01:08] [#]} 9. Nxe4 $146 {[%emt 0:05:20]} (9. e6 {seems wilder.} Qb6 10. Qxb6 axb6 11. Nxe4 dxe4 12. Ne2) ({Predecessor:} 9. e6 fxe6 10. Nf3 Qb6 11. Qxb6 axb6 12. Nxe4 dxe4 13. Nd4 Ra5 14. Bc7 Bd5 15. Bxb6 {1-0 (40) Gatineau,Y (2368)-Rakotomaharo,F (2490) Lodz 2022}) 9... dxe4 {[%emt 0:00:02]} 10. Ne2 {[%emt 0:01:41][%cal Oe5e6]} e6 {[%emt 0:02:04]} 11. Qxd8+ {[%emt 0:00:14]} Rxd8 {[%emt 0:00:04]} 12. Rd1 {[%emt 0:00:04]} Rxd1+ {[%emt 0:02:03]} 13. Kxd1 {[%emt 0:00:01]} Bc5 {[%emt 0:00:01]} 14. Be3 {[%emt 0:00:55]} Bxe3 {[%emt 0:00:16]} 15. fxe3 $15 {[%emt 0:00:02][%mdl 4096] Endgame KRB-KRN} Ke7 {[%emt 0:00:01]} 16. Kc1 {[%emt 0:00:42]} f6 {[%emt 0:00:32]} 17. exf6+ {[%emt 0:00:50]} gxf6 {[%emt 0:00:02]} 18. Rd1 {[%emt 0:01:27]} Rg8 {[%emt 0:00:54]} 19. g3 {[%emt 0:00:05]} e5 {[%emt 0:03:56]} 20. c4 {[%emt 0:00:48]} Rg5 {[%emt 0:01:04]} 21. Nc3 {[%emt 0:00:46]} Rf5 {[%emt 0:00:38]} 22. Rd2 {[%emt 0:00:11]} Rf3 {[%emt 0:00:19]} 23. Re2 {[%emt 0:00:04]} a5 {[%emt 0:00:11]} 24. b3 {[%emt 0:00:31]} Kd6 {[%emt 0:00:44]} 25. a3 {[%emt 0:00:11]} Kc5 {[%emt 0:00:00]} 26. a4 {[%emt 0:03:00] [#]} (26. Nb1 $1 $11 {and White has nothing to worry.}) 26... h5 {[%emt 0:00:18]} (26... f5 $1 $19 {White must now prevent ...f4.} 27. Kc2 h5) 27. Kc2 {[%emt 0:00:18]} ({White should play} 27. Nd1) 27... f5 {[%emt 0:00:07]} 28. Nb1 {[%emt 0:00:10]} f4 {[%emt 0:00:51]} 29. exf4 {[%emt 0:00:21]} exf4 {[%emt 0:00:01]} 30. Nd2 $2 {[%emt 0:00:58][%mdl 8192]} (30. gxf4 $17 Rxf4 31. Nc3) 30... fxg3 $19 {[%emt 0:00:11]} 31. hxg3 {[%emt 0:00:02] [#]} Kd4 $1 {[%emt 0:01:06]} 32. Rh2 {[%emt 0:00:35]} Rc3+ {[%emt 0:00:09]} 33. Kd1 {[%emt 0:00:08]} Rxg3 {[%emt 0:00:14] aiming for ...e3.} 34. Rxh5 {[%emt 0:00:06]} e3 {[%emt 0:00:07]} 35. Rh4+ {[%emt 0:00:03]} Ke5 {Weighted Error Value: White=0.74/Black=0.23 (precise)} (35... Kd3 $142 36. Nf1 Rg1 37. Rf4 e2+ 38. Ke1 Bg2 39. Rd4+ Kxd4 40. Kxe2 Rxf1 41. c5 Bh3 42. b4 axb4 43. c6 bxc6 44. a5 b3 45. a6 b2 46. a7 b1=Q 47. a8=Q Qe1#) 0-1

[Event "German Rapid Championship 2022"]
[Site "Goettingen"]
[Date "2022.09.25"]
[Round "6.10"]
[White "Tschernatsch, Johannes"]
[Black "Feuerstack, Aljoscha"]
[Result "0-1"]
[ECO "B40"]
[WhiteElo "2294"]
[BlackElo "2464"]
[Annotator "TA"]
[PlyCount "58"]
[EventDate "2022.09.24"]
[EventType "swiss"]
[EventCountry "GER"]
[SourceTitle "playchess.com"]
[Source "ChessBase"]
[SourceQuality "1"]
[TimeControl "900+10"]

{[%evp 9,58,17,12,11,14,8,20,-31,-27,-10,-26,-17,-18,-26,-28,-45,-64,-72,-64,-50,-38,-63,-58,-290,-284,-314,-312,-311,-314,-304,-310,-294,-288,-466,-472,-467,-467,-627,-618,-597,-522,-4782,-4802,-1168,-1096,-29992,-29993,-29993,-29993,-29993,-29994]} 1. e4 {[%emt 0:00:02]} c5 {[%emt 0:00:02]} 2. Nf3 {[%emt 0:00:01]} e6 {[%emt 0:00:01]} 3. g3 {[%emt 0:00:06]} d5 {[%emt 0:00:03]} 4. exd5 {[%emt 0:00:02]} exd5 {[%emt 0:00:02]} 5. d4 {[%emt 0:00:02]} cxd4 {[%emt 0:00:02]} 6. Nxd4 {[%emt 0:00:22] B40: Sicilian: 2...e6, Unusual lines.} Nc6 {[%emt 0:00:02]} 7. Bg2 {[%emt 0:00:22]} Bc5 {[%emt 0:00:09]} 8. Be3 {[%emt 0:01:14]} (8. Nb3 $11 Qe7+ 9. Kf1 (9. Qe2 Bb6 $11)) 8... Nxd4 $15 {[%emt 0:00:11]} 9. Bxd4 {[%emt 0:00:05]} Qe7+ {[%emt 0:00:01]} 10. Kf1 {[%emt 0:00:16]} Nf6 {[%emt 0:00:04]} 11. Nc3 {[%emt 0:00:40]} O-O {[%emt 0:00:54] [#]} 12. Bxf6 $146 {[%emt 0:01:06]} ({Predecessor:} 12. h3 Bf5 13. Rc1 Rad8 14. Bf3 Ne4 15. Kg2 Ng5 16. Bg4 Be4+ 17. f3 f5 18. Bh5 {0-1 (27) Zubov,A (2598)-Volokitin,A (2652) Kiev 2021}) 12... Qxf6 {[%emt 0:00:02][%csl Gc5][%cal Rf6f2] [#]} 13. Qf3 {[%emt 0:00:22]} Qb6 {[%emt 0:02:50] Black is more active.} 14. b3 {[%emt 0:00:35]} Qg6 $36 {[%emt 0:02:28][%mdl 2048] Black fights for an advantage.} (14... d4 {seems wilder.} 15. Na4 Qa5 16. h4 Be7) 15. Qxd5 {[%emt 0:01:18]} Bb6 {[%emt 0:00:01]} 16. Ne4 $2 {[%emt 0:02:27] This costs White the game.} ({White should play} 16. Qd2 $1 $15) 16... Bf5 $19 {[%emt 0:00:33] [#] White must now prevent ...Rad8.} 17. h4 {[%emt 0:00:53][%cal Bh2h4,Bh4h5,Bh5g6,Bg6h7][%mdl 32]} Rad8 {[%emt 0:00:56]} 18. h5 {[%emt 0:00:19] Threatens to win with Qxd8.} ({Wrong is} 18. Qxb7 $2 Rd7 19. Qa6 (19. h5 $2 Qe6 $19) 19... Bxe4 $19) 18... Bxe4 {[%emt 0:00:09]} ({And not} 18... Rxd5 19. hxg6 Re5 20. gxh7+ Bxh7 21. Nd6 $11) 19. hxg6 {[%emt 0:06:36]} Bxd5 {[%emt 0:00:07] A strong pair of Bishops.} 20. gxh7+ {[%emt 0:00:05]} Kh8 {[%emt 0:00:01]} 21. Re1 $2 {[%emt 0:00:45]} (21. Bxd5 Rxd5 22. Re1) 21... Bxg2+ {[%emt 0:00:26]} 22. Kxg2 {[%emt 0:00:01]} Rd2 {[%emt 0:00:01][%csl LRc2,LRf2] Inhibits Re2.} 23. Re7 {[%emt 0:00:23]} Rxf2+ {[%emt 0:00:30]} 24. Kh3 {[%emt 0:00:02]} Kxh7 {[%emt 0:00:27] ...Kg6 is the strong threat.} 25. c4 {[%emt 0:00:27]} Kg6 {[%emt 0:00:10] ( -> ...Rh8+)} 26. Re4 {[%emt 0:00:33]} Bd8 {[%emt 0:00:25] aiming for ...f5.} 27. g4 {[%emt 0:00:20]} Bc7 {[%emt 0:00:02][%cal Rf8h8] Black mates.} 28. g5 {[%emt 0:00:12]} Rh8+ {[%emt 0:00:18]} 29. Rh4 {[%emt 0:00:03]} Rd8 {[%emt 0:00:01] Weighted Error Value: White=0.91/Black=0.07 (flawless)} 0-1

[Event "German Rapid Championship 2022"]
[Site "Goettingen"]
[Date "2022.09.25"]
[Round "6.11"]
[White "Langheinrich, Ferenc"]
[Black "Perkampus, Laurin"]
[Result "1-0"]
[ECO "A06"]
[WhiteElo "2366"]
[BlackElo "2123"]
[Annotator "TA"]
[PlyCount "79"]
[EventDate "2022.09.24"]
[EventType "swiss"]
[EventCountry "GER"]
[SourceTitle "playchess.com"]
[Source "ChessBase"]
[SourceQuality "1"]
[TimeControl "900+10"]

{[%evp 12,79,0,0,10,-31,-33,-50,-14,-28,0,0,14,18,32,20,33,32,38,0,0,-12,0,-8,111,79,82,85,85,85,92,56,76,75,143,132,144,143,146,146,146,146,154,150,176,146,188,190,327,197,209,218,202,168,166,159,196,175,205,172,207,206,216,213,911,898,925,914,29965,6404]} 1. Nf3 {[%emt 0:00:04]} d5 {[%emt 0:02:19]} 2. g3 {[%emt 0:00:06]} g6 {[%emt 0:00:06]} 3. Bg2 {[%emt 0:00:04]} Bg7 {[%emt 0:00:02]} 4. d4 {[%emt 0:00:08]} Nf6 {[%emt 0:00:03]} 5. O-O {[%emt 0:00:03]} O-O {[%emt 0:00:04]} 6. c3 {[%emt 0:00:02]} Nbd7 {[%emt 0:00:07]} 7. Bf4 {[%emt 0:00:28]} c5 {[%emt 0:00:23] D02: 1 d4 d5 2 Nf3 sidelines, including 2...Nf6 3 g3 and 2...Nf6 3 Bf4.} 8. dxc5 {[%emt 0:01:44]} Nxc5 {[%emt 0:00:08]} 9. Nbd2 {[%emt 0:00:04]} Bf5 {[%emt 0:01:37] [#] Black is slightly better.} 10. a4 $146 {[%emt 0:00:30]} ({Predecessor:} 10. Nd4 Bd7 11. N2b3 Qb6 12. Nxc5 Qxc5 13. Qb3 Bc6 14. Rad1 Nd7 15. e4 dxe4 16. Nxc6 Qxc6 17. Bxe4 Qxe4 18. Rxd7 {1-0 (26) Kulvietis,M (1991)-Mitchell,A (2046) IECG email 1999}) 10... a5 {[%emt 0:01:13]} 11. Nb3 {[%emt 0:00:11]} Qc8 {[%emt 0:02:34]} 12. Nxc5 {[%emt 0:00:06]} Qxc5 {[%emt 0:00:02]} 13. Qb3 {[%emt 0:00:03]} Qc8 {[%emt 0:01:11]} 14. Rfd1 {[%emt 0:01:03]} Rd8 {[%emt 0:00:32]} 15. Be5 {[%emt 0:00:51]} Be4 {[%emt 0:00:31]} 16. Qb5 {[%emt 0:02:21]} Ra6 {[%emt 0:01:20]} 17. Rac1 {[%emt 0:01:03]} Qe6 {[%emt 0:01:31]} (17... Ne8 $11 {keeps the balance.} 18. Bxg7 Nd6) 18. Bc7 {[%emt 0:00:56]} Rc8 {[%emt 0:01:34]} 19. Ng5 {[%emt 0:01:25]} (19. Qxb7 d4 20. Qb5 Bxf3 21. Bxf3 Rxc7 $17) 19... Qc6 {[%emt 0:00:46]} 20. Nxe4 {[%emt 0:00:36]} dxe4 {[%emt 0:01:39]} 21. Be5 {[%emt 0:02:43] White has more active pieces.} Qe6 {[%emt 0:00:32]} 22. Bd4 {[%emt 0:00:01] Inhibits Rb6. Black is on the road to losing.} ({Of course not} 22. Qxb7 Rb6 23. Qa7 Rxb2 $11) 22... h5 {[%emt 0:00:25]} ({Black should try} 22... Raa8) 23. Qxb7 $16 {[%emt 0:00:31]} h4 {[%emt 0:00:04]} 24. Bxf6 {[%emt 0:00:10]} Bxf6 {[%emt 0:00:06]} 25. Qxe4 {[%emt 0:00:07]} Qxe4 {[%emt 0:00:16]} 26. Bxe4 {[%emt 0:00:01] [#] And now Bb7 would win.} Rb6 {[%emt 0:00:07] Inhibits Bb7.} 27. Rb1 {[%emt 0:01:45]} Rc4 {[%emt 0:00:03]} 28. Bc2 {[%emt 0:00:06]} Kg7 {[%emt 0:00:23]} 29. Rd5 {[%emt 0:00:05]} Re6 {[%emt 0:00:10]} (29... Rc8 {was called for.} 30. Rb5 (30. Rxa5 Rcb8 $18) 30... Rcb8) 30. e3 {[%emt 0:00:06]} hxg3 {[%emt 0:00:08]} 31. hxg3 {[%emt 0:00:02]} Re5 {[%emt 0:00:01]} 32. Rxe5 {[%emt 0:00:03]} Bxe5 $18 {[%emt 0:00:00][%mdl 4096] Endgame KRB-KRB} 33. Kf1 {[%emt 0:00:14]} g5 {[%emt 0:00:18]} 34. Ke2 Kf6 {[%emt 0:00:06]} 35. Rd1 {[%emt 0:00:07]} Rc6 {[%emt 0:00:06]} 36. Bd3 {[%emt 0:00:09]} Rb6 {[%emt 0:00:11]} 37. Bb5 Rd6 $2 {[#]} (37... Rb8 38. f4 gxf4) 38. f4 {[%emt 0:00:06]} gxf4 {[%emt 0:00:15]} 39. gxf4 {[%emt 0:00:03][%cal Bg3f4,Bf4e5][%mdl 32]} Rxd1 {[%emt 0:00:31]} 40. fxe5+ {[%emt 0:00:01] Weighted Error Value: White=0.14 (very precise) /Black=0.53} ({Not} 40. Kxd1 Bd6 41. Bc4 e6 $16) 1-0